bitfinex/quotes_SOLUSD_20240716
["timestamp","ask_amount","ask_price","bid_price","bid_amount"]
[1721133308504,0.8519856,157.58,157.53,15.8695]
[1721133308815,10.8519856,157.57,157.51,6.3487]
[1721133309018,10.8519856,157.57,157.5,15.8726]
[1721133309019,10.0,157.55,157.5,22.2216]
[1721133309197,0.8519856,157.56,157.51,6.3485]
[1721133309394,7.1989856,157.56,157.5,15.8726]
[1721133309600,10.0,157.55,157.5,15.8726]
[1721133309803,7.1997856,157.54,157.48,6.3497]
[1721133310123,16.348,157.53,157.48,6.3497]
[1721133310306,16.348,157.53,157.47,22.2261]
[1721133310307,0.8519856,157.52,157.47,22.2261]
[1721133310506,7.2003856,157.52,157.47,22.2261]
[1721133310699,16.3472,157.55,157.5,6.3488]
[1721133310902,10.0,157.53,157.49,15.8735]
[1721133311114,20.8519856,157.54,157.49,15.8735]
[1721133311725,10.0,157.61,157.52,6.3483]
[1721133311726,17.1985856,157.57,157.52,6.3483]
[1721133311925,10.0,157.57,157.53,6.3479]
[1721133312130,0.8519856,157.61,157.53,1.26959998]
[1721133312300,22.96959868,157.62,157.56,15.8667]
[1721133312301,7.1971856,157.6,157.56,15.8667]
[1721133312793,6.3456,157.59,157.54,6.3475]
[1721133312996,7.1971856,157.6,157.55,7.61632506]
[1721133313291,16.3452,157.6,157.55,6.3471]
[1721133313493,6.3468,157.56,157.51,6.3486]
[1721133313708,10.0,157.58,157.51,6.3486]
[1721133313709,0.8519856,157.57,157.51,6.3486]
[1721133313914,20.0,157.57,157.52,17.30984755]
[1721133314133,20.0,157.59,157.54,15.8684]
[1721133314305,20.0,157.59,157.56,6.3465]
[1721133314501,7.1969856,157.61,157.56,6.3465]
[1721133315234,13.5919856,157.62,157.57,1.26913642]
[1721133315439,10.0,157.65,157.58,17.13315316]
[1721133315728,7.1957856,157.64,157.59,6.3452]
[1721133315902,7.1957856,157.64,157.6,1.26886137]
[1721133316100,6.344,157.63,157.58,22.2099]
[1721133316300,0.8519856,157.65,157.6,15.862]
[1721133316503,6.57048999,157.67,157.61,1.26878593]
[1721133316504,7.1944856,157.67,157.61,1.26878593]
[1721133316727,6.3432,157.65,157.61,1.26878593]
[1721133316928,6.3436,157.64,157.6,15.862]
[1721133317132,16.3432,157.65,157.59,6.5154]
[1721133317320,10.0,157.67,157.61,6.3444]
[1721133317520,6.3424,157.67,157.62,7.6130158]
[1721133317826,6.342,157.68,157.63,6.3436]
[1721133318211,0.8519856,157.67,157.62,6.3442]
[1721133318612,0.8519856,157.68,157.63,6.3439]
[1721133318812,7.1941856,157.68,157.62,6.3442]
[1721133319024,6.3422,157.68,157.63,6.3439]
[1721133319233,20.8519856,157.67,157.62,6.3443]
[1721133319409,0.8519856,157.67,157.62,6.3443]
[1721133319737,0.8519856,157.67,157.61,16.031]
[1721133319738,6.3428,157.66,157.61,16.031]
[1721133319942,6.3428,157.66,157.61,22.2056]
[1721133320244,6.3428,157.66,157.61,15.861]
[1721133320612,7.1951856,157.65,157.61,15.861]
[1721133320827,6.3432,157.65,157.61,15.861]
[1721133321134,0.8519856,157.68,157.64,6.3433]
[1721133321348,0.8519856,157.68,157.63,22.2031]
[1721133321512,30.8519856,157.69,157.65,6.3428]
[1721133321708,20.8519856,157.69,157.65,6.3428]
[1721133321907,20.0,157.69,157.66,1.26844195]
[1721133322245,27.1926856,157.71,157.66,6.3426]
[1721133322444,7.1926856,157.71,157.66,6.3426]
[1721133322610,20.0,157.7,157.66,7.61095369]
[1721133322812,36.3413,157.7,157.65,15.8573]
[1721133323111,7.1936856,157.69,157.62,15.8606]
[1721133323320,26.3412,157.7,157.63,1.43846686]
[1721133323636,26.3412,157.7,157.64,6.3434]
[1721133323826,26.3412,157.7,157.65,1.26842567]
[1721133324021,10.8519856,157.69,157.63,6.5138]
[1721133324327,6.342,157.68,157.63,6.5138]
[1721133324522,7.1935856,157.69,157.64,7.61188269]
[1721133324723,16.3418,157.69,157.64,22.2018]
[1721133324921,16.3418,157.69,157.64,15.8583]
[1721133325114,6.3423,157.67,157.62,6.3442]
[1721133325308,10.0,157.65,157.58,15.5076]
[1721133325622,6.3439,157.63,157.58,37.7181]
[1721133325819,0.8519856,157.62,157.58,15.8647]
[1721133326010,7.1963856,157.62,157.58,15.8647]
[1721133326207,0.8519856,157.62,157.58,22.2106]
[1721133326408,0.8519856,157.64,157.58,15.8647]
[1721133326716,20.0,157.64,157.59,1.26900576]
[1721133326916,20.0,157.64,157.61,15.8618]
[1721133327130,20.8519856,157.68,157.62,1.2687]
[1721133327334,20.0,157.68,157.65,6.343]
[1721133327644,20.0,157.68,157.63,15.8595]
[1721133327645,20.0,157.68,157.64,6.3435]
[1721133327934,0.8519856,157.67,157.6,31.7257]
[1721133328240,0.8519856,157.69,157.61,0.34]
[1721133328427,27.1931856,157.7,157.65,6.3431]
[1721133328617,26.3412,157.7,157.65,6.3431]
[1721133328933,37.1931856,157.7,157.65,6.3431]
[1721133329141,6.3423,157.67,157.62,6.3442]
[1721133329445,16.3432,157.65,157.6,6.3451]
[1721133329645,0.8519856,157.64,157.6,6.3451]
[1721133329840,6.3448,157.61,157.56,6.3464]
[1721133330020,6.3461,157.58,157.53,6.3479]
[1721133330218,6.3456,157.59,157.54,6.3475]
[1721133330436,10.0,157.6,157.53,6.3479]
[1721133330437,6.3462,157.58,157.53,6.3479]
[1721133330621,10.0,157.6,157.54,6.3475]
[1721133330622,6.3456,157.59,157.54,6.3475]
[1721133330958,10.0,157.57,157.52,15.8705]
[1721133331115,10.0,157.57,157.5,22.5271]
[1721133331116,16.3471,157.55,157.5,6.3491]
[1721133331315,0.8519856,157.54,157.5,6.3491]
[1721133331530,7.1996856,157.54,157.49,22.2234]
[1721133331847,0.8519856,157.54,157.5,6.3491]
[1721133332049,7.1996856,157.54,157.49,22.2234]
[1721133332352,16.348,157.53,157.46,22.8175]
[1721133332515,0.8519856,157.54,157.5,6.3492]
[1721133332719,10.8519856,157.54,157.47,15.8752]
[1721133332942,0.8519856,157.54,157.5,6.349]
[1721133333121,10.0,157.54,157.51,6.3486]
[1721133333321,7.2000856,157.53,157.48,6.3499]
[1721133333537,27.2000856,157.53,157.48,6.3499]
[1721133333751,27.2000856,157.53,157.36,0.03991022]
[1721133333752,6.3513,157.45,157.36,0.03991022]
[1721133334046,10.0,157.44,157.36,0.03991022]
[1721133334216,0.8519856,157.43,157.36,0.03991022]
[1721133334418,16.5848,157.42,157.36,0.03991022]
[1721133334634,16.5848,157.42,157.16,15.0]
[1721133334635,6.3548,157.36,157.16,15.0]
[1721133334844,52.3767856,157.36,157.26,6.3588]
[1721133335025,72.5467856,157.36,157.24,15.8986]
[1721133335224,72.5467856,157.36,157.24,22.258]
[1721133335434,72.5467856,157.36,157.2,16.7551118]
[1721133335640,72.5467856,157.36,157.23,22.2596]
[1721133335835,81.6948,157.36,157.35,0.0004262]
[1721133336149,16.3578,157.29,157.23,15.8999]
[1721133336350,10.0,157.29,157.24,6.3596]
[1721133336747,10.0,157.33,157.26,15.8968]
[1721133337050,20.0,157.36,157.29,15.8937]
[1721133337277,20.0,157.35,157.31,6.3566]
[1721133337561,10.0,157.39,157.31,6.3564]
[1721133337864,25.8786,157.45,157.3,0.17]
[1721133337865,10.0,157.37,157.3,0.17]
[1721133338030,6.3541,157.38,157.32,6.3563]
[1721133338341,10.0,157.41,157.32,15.8908]
[1721133338534,16.352,157.43,157.36,6.3548]
[1721133338738,6.3525,157.42,157.35,15.8877]
[1721133338950,10.0,157.49,157.42,6.352]
[1721133339151,10.0,157.45,157.37,15.8852]
[1721133339366,6.3516,157.44,157.38,6.5239]
[1721133339748,6.3516,157.44,157.3,15.0]
[1721133339749,10.0,157.35,157.22,38.3606]
[1721133339953,10.0,157.37,157.27,15.8953]
[1721133340145,10.0,157.37,157.27,31.792]
[1721133340462,10.0,157.37,157.33,6.356]
[1721133340643,10.0,157.38,157.27,31.792]
[1721133340846,10.0,157.34,157.29,15.8935]
[1721133341035,16.3557,157.34,157.29,15.8935]
[1721133341235,10.0,157.34,157.25,15.8972]
[1721133341431,10.0,157.34,157.27,6.3584]
[1721133341864,16.3556,157.34,157.28,6.358]
[1721133342170,10.0,157.32,157.28,6.3578]
[1721133342340,10.0,157.35,157.29,6.3576]
[1721133342670,31.7653,157.41,157.18,102.2488]
[1721133342671,6.3571,157.31,157.25,6.3591]
[1721133342833,10.0,157.31,157.23,15.9002]
[1721133343033,10.0,157.31,157.26,6.3585]
[1721133343254,20.0,157.34,157.18,31.8088]
[1721133343255,10.0,157.29,157.18,31.8088]
[1721133343434,16.3578,157.29,157.23,6.3597]
[1721133343637,10.0,157.27,157.22,15.9002]
[1721133343839,75.0,157.26,157.2,0.8524118]
[1721133344133,10.0,157.29,157.22,15.9011]
[1721133344333,10.0,157.27,157.22,15.9011]
[1721133344776,45.0,157.26,157.22,15.9011]
[1721133344962,10.0,157.27,157.22,15.9011]
[1721133345268,10.0,157.28,157.22,15.9011]
[1721133345471,10.0,157.28,157.23,6.36]
[1721133345769,10.0,157.28,157.23,6.3598]
[1721133345948,10.0,157.28,157.22,15.9011]
[1721133346352,10.0,157.26,157.22,15.9011]
[1721133346550,10.0,157.28,157.22,15.9011]
[1721133346971,16.3573,157.3,157.24,6.3595]
[1721133347148,65.0,157.29,157.25,6.3592]
[1721133347569,10.0,157.27,157.22,15.9011]
[1721133347764,16.3585,157.27,157.22,15.9011]
[1721133347971,10.0,157.25,157.22,15.9011]
[1721133348159,10.0,157.25,157.2,0.8524118]
[1721133348346,45.0,157.24,157.2,0.8524118]
[1721133348553,10.0,157.22,157.2,0.8524118]
[1721133348770,55.0,157.24,157.2,0.8524118]
[1721133349082,10.0,157.22,157.2,0.8524118]
[1721133349373,45.0,157.21,157.2,0.8524118]
[1721133349781,10.0,157.22,157.2,0.8524118]
[1721133349977,45.0,157.21,157.2,0.8524118]
[1721133350361,51.3609,157.21,157.2,0.8524118]
[1721133350881,55.0,157.21,157.2,0.8524118]
[1721133351074,61.3609,157.21,157.2,0.8524118]
[1721133351876,55.0,157.21,157.2,0.8524118]
[1721133352077,81.3609,157.21,157.2,0.8524118]
[1721133352375,81.5309,157.21,157.2,0.8524118]
[1721133352787,81.7009,157.21,157.2,0.8524118]
[1721133353690,81.5309,157.21,157.2,0.8524118]
[1721133353884,16.3609,157.21,157.2,0.8524118]
[1721133354070,10.0,157.21,157.2,0.8524118]
[1721133354286,16.3609,157.21,157.2,0.8524118]
[1721133354472,10.0,157.14,157.12,22.2753]
[1721133354672,10.0,157.14,157.04,32.6906118]
[1721133355195,10.0,157.1,157.07,6.3662]
[1721133355365,10.0,157.1,157.04,32.6906118]
[1721133355366,10.0,157.1,157.08,6.366]
[1721133355567,10.0,157.1,157.09,6.3657]
[1721133355781,55.0,157.1,157.08,6.3658]
[1721133356007,10.0,157.1,157.07,15.9159]
[1721133356170,45.0,157.09,157.07,22.2824]
[1721133356584,10.0,157.1,157.07,22.2821]
[1721133356897,10.0,157.1,157.07,15.9159]
[1721133357095,6.5766,157.16,157.04,32.6906118]
[1721133357096,10.0,157.12,157.09,15.9137]
[1721133357294,10.0,157.12,157.1,6.365]
[1721133357470,10.0,157.12,157.04,32.6906118]
[1721133357673,10.0,157.12,157.05,1.27325702]
[1721133358096,10.0,157.14,157.08,31.8296]
[1721133358295,10.0,157.16,157.11,15.9115]
[1721133358492,10.0,157.14,157.11,15.9115]
[1721133358879,10.0,157.14,157.11,22.2762]
[1721133359199,10.0,157.14,157.08,31.8303]
[1721133359496,10.0,157.16,157.13,6.3638]
[1721133359694,10.0,157.16,157.12,15.9106]
[1721133359880,10.0,157.16,157.14,6.3636]
[1721133360072,10.0,157.13,157.05,20.0]
[1721133360299,10.0,157.15,157.13,6.364]
[1721133360485,10.0,157.15,157.14,6.3637]
[1721133360797,10.0,157.12,157.08,15.915]
[1721133361300,10.0,157.14,157.08,15.915]
[1721133361499,10.0,157.16,157.11,15.9123]
[1721133362012,10.0,157.16,157.13,6.364]
[1721133362405,10.0,157.16,157.12,6.3644]
[1721133362703,10.0,157.16,157.11,15.9123]
[1721133362704,10.0,157.13,157.11,22.2771]
[1721133362882,10.0,157.13,157.08,15.9148]
[1721133363081,10.0,157.11,157.09,6.3657]
[1721133363393,10.0,157.09,157.07,6.3664]
[1721133363574,10.0,157.09,157.06,6.3667]
[1721133363916,55.0,157.12,157.07,15.9157]
[1721133364091,55.0,157.12,156.98,15.1502]
[1721133364092,10.0,157.12,157.09,6.3655]
[1721133364403,10.0,157.12,157.09,22.2793]
[1721133364732,10.0,157.14,157.11,6.3649]
[1721133364921,16.363,157.16,157.11,6.3649]
[1721133365127,20.0,157.15,157.11,15.912]
[1721133365282,22.3998,157.21,157.08,31.8305]
[1721133365283,10.0,157.18,157.15,6.3633]
[1721133365612,10.0,157.16,157.14,6.3636]
[1721133365908,10.0,157.16,157.13,15.9097]
[1721133366209,10.0,157.19,157.13,15.9097]
[1721133366408,10.0,157.17,157.13,15.9097]
[1721133366614,10.0,157.15,157.13,15.9097]
[1721133366788,10.0,157.13,157.1,15.9131]
[1721133367191,45.0,157.12,157.1,15.9131]
[1721133367603,10.0,157.13,157.1,22.2781]
[1721133367916,10.0,157.11,157.1,15.9131]
[1721133368110,10.0,157.11,157.07,6.3662]
[1721133368307,10.0,157.17,157.06,22.2831]
[1721133368308,10.0,157.09,157.06,22.2831]
[1721133368518,10.0,157.09,157.07,6.3665]
[1721133368719,10.0,157.09,157.06,15.9165]
[1721133368913,10.0,157.09,157.05,6.3672]
[1721133369214,10.0,157.09,157.06,6.3668]
[1721133369590,10.0,157.09,157.05,22.285]
[1721133369794,10.0,157.07,157.04,0.8524118]
[1721133369994,10.0,157.05,157.04,0.8524118]
[1721133370409,10.0,157.09,157.04,16.7710118]
[1721133370590,10.0,157.11,157.04,0.8524118]
[1721133370793,10.0,157.09,157.06,22.2836]
[1721133371007,10.0,157.09,157.04,0.8524118]
[1721133371223,10.0,157.09,157.05,6.367]
[1721133371396,45.0,157.1,157.06,6.3668]
[1721133371597,45.0,157.1,157.05,15.9177]
[1721133371917,10.0,157.09,157.06,6.3666]
[1721133372088,10.0,157.07,157.04,0.8524118]
[1721133372291,10.0,157.07,157.04,7.2201118]
[1721133372518,10.0,157.07,157.04,0.8524118]
[1721133373033,10.0,157.05,157.04,0.8524118]
[1721133373212,16.3673,157.05,157.04,0.8524118]
[1721133373404,61.3673,157.05,157.04,0.8524118]
[1721133374597,55.0,157.05,157.04,0.8524118]
[1721133374802,61.3673,157.05,157.04,0.8524118]
[1721133375316,81.5373,157.05,157.04,0.8524118]
[1721133375833,81.3673,157.05,157.04,0.8524118]
[1721133376506,81.5373,157.05,157.04,0.8524118]
[1721133376702,81.7073,157.05,157.04,0.8524118]
[1721133377431,87.9034,157.05,157.04,0.8524118]
[1721133377742,10.0,156.97,156.89,0.04002978]
[1721133378030,10.0,156.95,156.89,1.31443203]
[1721133378244,10.0,156.97,156.93,6.3721]
[1721133378603,16.3706,156.97,156.92,22.3037]
[1721133378804,15.9231,157.01,156.89,33.18363679]
[1721133378805,10.0,156.95,156.93,6.3722]
[1721133379118,10.0,156.95,156.91,15.9322]
[1721133379301,10.0,156.95,156.91,22.3051]
[1721133379508,10.0,156.99,156.9,31.8669]
[1721133379738,10.0,156.95,156.93,6.3721]
[1721133380034,10.0,156.95,156.92,15.9312]
[1721133380241,10.0,156.93,156.89,15.97442978]
[1721133380539,16.3714,156.95,156.91,15.9322]
[1721133381136,10.0,156.95,156.91,22.3051]
[1721133381354,10.0,156.93,156.89,0.04002978]
[1721133381531,10.0,156.93,156.9,6.3731]
[1721133381829,10.0,156.95,156.91,6.3729]
[1721133382226,10.0,156.92,156.89,0.04002978]
[1721133382738,10.0,156.92,156.89,22.34802978]
[1721133382943,10.0,156.92,156.9,6.3733]
[1721133383433,10.0,156.92,156.89,22.34812978]
[1721133383639,55.0,156.94,156.9,6.3733]
[1721133384014,10.0,156.91,156.89,15.97432978]
[1721133384343,10.0,156.91,156.89,0.04002978]
[1721133385244,45.0,156.9,156.89,0.04002978]
[1721133385740,10.0,156.92,156.89,0.04002978]
[1721133386113,6.3731,156.91,156.89,0.04002978]
[1721133386318,10.0,156.9,156.89,0.04002978]
[1721133386520,10.0,156.92,156.89,0.04002978]
[1721133387405,31.3856,156.98,156.89,0.04002978]
[1721133387406,10.0,156.94,156.89,0.04002978]
[1721133387611,10.0,156.96,156.89,1.31472993]
[1721133387837,10.0,156.94,156.92,15.9311]
[1721133388038,10.0,156.94,156.9,6.3732]
[1721133388217,10.0,156.96,156.92,6.3723]
[1721133388415,10.0,156.96,156.93,6.3721]
[1721133388838,10.0,156.99,156.93,15.9301]
[1721133389025,10.0,157.01,156.89,31.90932978]
[1721133389330,10.0,157.03,156.98,6.3699]
[1721133389514,10.0,157.03,156.91,42.09]
[1721133389515,16.3682,157.03,156.97,6.3705]
[1721133389714,6.3686,157.02,156.97,6.3705]
[1721133390237,15.917,157.07,156.93,31.861]
[1721133390238,10.0,157.04,157.01,6.3687]
[1721133390440,10.0,157.04,156.99,15.9244]
[1721133390832,10.0,157.06,157.02,6.3685]
[1721133391037,10.0,157.07,157.03,6.368]
[1721133391352,6.1647,157.09,156.98,15.9252]
[1721133391353,10.0,157.03,156.98,15.9252]
[1721133391641,16.3674,157.05,157.0,6.3694]
[1721133391822,10.0,157.03,156.98,15.9251]
[1721133392732,10.0,157.03,157.0,6.369]
[1721133392929,10.0,157.05,157.0,15.9228]
[1721133393130,10.0,157.09,157.04,15.9187]
[1721133393329,10.0,157.07,157.04,15.9187]
[1721133393744,10.0,157.09,157.04,22.2862]
[1721133394145,10.0,157.09,157.06,6.3668]
[1721133394347,10.0,157.09,157.05,6.3673]
[1721133394523,10.0,157.07,157.01,15.9223]
[1721133394720,10.0,157.03,156.98,6.2272]
[1721133394917,10.0,157.05,156.98,6.2272]
[1721133395117,16.3674,157.05,156.99,6.3696]
[1721133395430,16.3674,157.05,157.0,15.923]
[1721133395431,10.0,157.05,157.0,15.923]
[1721133395629,10.0,157.03,157.0,15.923]
[1721133395844,10.0,157.03,156.97,15.9261]
[1721133396145,10.0,157.03,156.99,15.9239]
[1721133396338,10.0,157.05,156.97,31.8523]
[1721133396643,10.0,157.09,157.05,6.3672]
[1721133396828,20.0,157.08,157.05,6.3672]
[1721133397348,10.0,157.09,157.06,6.3668]
[1721133397640,10.0,157.09,157.05,6.3673]
[1721133397849,10.0,157.11,157.06,6.3666]
[1721133398025,20.0,157.1,157.06,6.3666]
[1721133398223,20.0,157.1,157.05,22.2852]
[1721133398425,20.0,157.1,157.05,15.918]
[1721133398755,10.0,157.11,157.07,6.3663]
[1721133399060,15.9086,157.15,157.1,6.3652]
[1721133399061,16.3637,157.15,157.1,6.3652]
[1721133399351,6.3629,157.16,157.11,7.63785068]
[1721133399530,16.3625,157.17,157.12,6.3644]
[1721133399865,10.0,157.15,157.1,6.3652]
[1721133400348,16.3636,157.15,157.09,22.2793]
[1721133400552,6.3638,157.14,157.09,15.9139]
[1721133400755,10.0,157.13,157.09,15.9139]
[1721133400957,6.3638,157.14,157.09,22.2796]
[1721133401122,10.0,157.13,157.09,15.9139]
[1721133401323,10.0,157.13,157.07,21.7012]
[1721133401324,10.0,157.11,157.07,21.7013]
[1721133401546,10.0,157.13,157.08,6.3661]
[1721133401851,10.0,157.11,157.07,21.7016]
[1721133402051,10.0,157.15,157.09,6.3657]
[1721133402241,10.0,157.13,157.09,6.3657]
[1721133402444,16.3642,157.13,157.08,15.9149]
[1721133403150,10.0,157.13,157.08,22.2807]
[1721133403657,10.0,157.11,157.05,15.9179]
[1721133403837,10.0,157.11,157.05,22.285]
[1721133404038,10.0,157.07,157.02,15.0513]
[1721133404251,10.0,157.04,156.99,15.9243]
[1721133404546,10.0,157.02,156.96,22.4081]
[1721133404753,10.0,157.02,156.98,15.9246]
[1721133404956,10.0,157.02,156.96,16.3549]
[1721133405152,6.3691,157.01,156.96,16.3549]
[1721133405329,16.3687,157.02,156.96,22.7258]
[1721133405535,10.0,157.04,156.96,16.3549]
[1721133405732,10.0,157.04,157.0,6.3692]
[1721133406042,10.0,157.06,156.99,15.924]
[1721133406239,10.0,157.03,156.99,22.2938]
[1721133406542,10.0,157.05,157.0,6.3692]
[1721133406862,10.0,157.08,157.02,15.9208]
[1721133407058,16.367,157.06,157.01,6.3689]
[1721133407231,10.0,157.08,156.96,16.3549]
[1721133407432,10.0,157.1,157.04,6.3674]
[1721133407848,10.0,157.1,157.03,15.9197]
[1721133408047,10.0,157.09,157.04,6.3677]
[1721133408254,10.0,157.09,157.05,6.3673]
[1721133408445,10.0,157.09,157.04,6.3677]
[1721133408646,10.0,157.09,156.98,73.9408]
[1721133408647,10.0,157.11,157.05,15.9178]
[1721133408859,10.0,157.11,157.06,6.3669]
[1721133409368,16.365,157.11,157.06,6.3669]
[1721133409572,15.9088,157.15,157.05,15.9178]
[1721133409573,10.0,157.09,157.05,15.9178]
[1721133409935,10.0,157.09,157.01,15.9223]
[1721133410136,10.0,157.09,156.98,73.9408]
[1721133410137,10.0,157.11,157.03,15.9197]
[1721133410376,10.0,157.09,157.04,6.3676]
[1721133411265,10.0,157.09,157.05,6.3672]
[1721133411466,10.0,157.06,157.02,6.3684]
[1721133411958,10.0,157.06,157.01,6.3689]
[1721133412353,10.0,157.04,156.89,0.04002978]
[1721133412861,45.0,157.03,156.9,42.09]
[1721133413270,45.0,157.03,156.97,15.926]
[1721133413442,45.0,157.03,157.0,6.3691]
[1721133413639,45.0,157.03,156.99,22.2935]
[1721133414071,10.0,157.0,156.95,6.3714]
[1721133414365,6.3686,157.02,156.91,31.8652]
[1721133414593,16.3679,157.04,156.99,6.3698]
[1721133414745,10.0,157.04,156.99,6.3698]
[1721133414946,16.3681,157.04,156.98,22.2953]
[1721133415265,10.0,157.04,156.98,22.2953]
[1721133415468,16.3688,157.02,156.96,6.3706]
[1721133415658,6.3692,157.01,156.95,22.2996]
[1721133416039,6.3686,157.02,156.97,6.3705]
[1721133416470,6.3686,157.02,156.96,1.27391458]
[1721133416471,16.3686,157.02,156.96,6.3709]
[1721133416671,6.3694,157.0,156.9,42.09]
[1721133416848,6.3694,157.0,156.91,0.34]
[1721133416849,16.3694,157.0,156.91,0.34]
[1721133417047,10.0,157.0,156.9,16.1031]
[1721133417380,10.0,156.97,156.92,6.3725]
[1721133417667,10.0,156.97,156.92,22.3036]
[1721133417865,10.0,156.97,156.91,6.373]
[1721133418075,10.0,156.99,156.91,15.932]
[1721133418251,10.0,156.97,156.92,6.3725]
[1721133418768,16.3708,156.97,156.91,22.3049]
[1721133419067,10.0,156.97,156.92,6.3726]
[1721133419276,16.3707,156.97,156.92,6.3725]
[1721133419447,10.0,156.98,156.91,6.3727]
[1721133419650,6.3709,156.97,156.91,6.3727]
[1721133419855,10.0,156.98,156.93,6.3718]
[1721133420054,6.3701,156.99,156.94,6.3718]
[1721133420353,10.0,157.0,156.94,6.3718]
[1721133420354,16.3695,157.0,156.94,6.3718]
[1721133420562,10.0,157.0,156.94,15.9292]
[1721133420763,15.9201,157.04,156.98,6.3698]
[1721133420764,10.0,157.02,156.98,6.3698]
[1721133420968,10.0,157.02,156.96,15.9271]
[1721133421154,15.917,157.07,156.94,6.3717]
[1721133421155,10.0,156.99,156.94,6.3717]
[1721133421649,10.0,156.99,156.91,31.8649]
[1721133421650,10.0,157.03,156.95,15.9279]
[1721133421874,10.0,157.04,156.99,6.3695]
[1721133422064,6.3686,157.02,156.97,6.3705]
[1721133422262,10.0,157.04,156.99,6.3698]
[1721133422475,10.0,157.04,156.95,31.857]
[1721133422676,10.0,157.07,156.96,17.33063377]
[1721133422974,10.0,157.07,156.96,23.36193377]
[1721133423357,10.0,157.07,157.02,6.3685]
[1721133423555,10.0,157.09,157.03,1.27351728]
[1721133423791,10.0,157.09,157.04,6.3678]
[1721133423954,10.0,157.07,157.03,15.9198]
[1721133424161,10.0,157.09,157.03,22.2878]
[1721133424357,10.0,157.11,157.04,1.27343986]
[1721133424577,10.0,157.11,157.06,6.3666]
[1721133424903,10.0,157.11,157.06,1.27321359]
[1721133425071,6.3653,157.1,157.05,22.285]
[1721133425264,10.0,157.11,157.05,15.9177]
[1721133425564,16.3642,157.13,157.05,15.9177]
[1721133425765,10.0,157.13,157.07,15.9159]
[1721133426088,10.0,157.12,157.07,23.55526425]
[1721133426288,6.3641,157.13,157.07,17.18896425]
[1721133426885,6.3636,157.15,157.08,1.27305163]
[1721133427284,16.363,157.16,157.1,6.3653]
[1721133427488,16.363,157.16,157.1,7.6382083]
[1721133427489,6.3634,157.15,157.1,7.6382083]
[1721133428000,10.0,157.14,157.06,15.9171]
[1721133428365,6.3636,157.15,157.09,6.3654]
[1721133428787,16.3638,157.14,157.08,15.9149]
[1721133428973,6.3642,157.13,157.08,15.9149]
[1721133429573,6.3642,157.13,157.08,22.281]
[1721133429773,16.3647,157.12,157.05,15.9179]
[1721133430169,6.3641,157.13,157.07,6.3664]
[1721133430373,10.0,157.14,157.1,6.3653]
[1721133430667,6.3636,157.15,157.07,15.9159]
[1721133431082,6.3636,157.15,157.1,6.3653]
[1721133431488,10.0,157.14,157.03,31.8406]
[1721133431691,10.0,157.14,157.04,0.34]
[1721133431990,10.0,157.14,157.08,22.281]
[1721133431991,16.3638,157.14,157.08,22.281]
[1721133432203,10.0,157.16,157.09,1.27296283]
[1721133432369,10.0,157.2,157.16,6.3628]